[Event "Titled Tuesday Blitz August 02 Early 2022"]
[White "Concio, Michael Jr."]
[Black "Ponce Cano, Adrian"]
[WhiteFideId "5217873"]
[BlackFideId "22296913"]
[WhiteElo "1896"]
[BlackElo "2261"]
[Result "0-1"]
[Round "06"]
[TimeControl "180+1"]
[Date "2022.08.02"]
[WhiteClock "0:00:03"]
[BlackClock "0:00:11"]

1. e4 {[%clk 0:03:00]}  c5 {[%clk 0:02:52]} 2. g3 {[%clk 0:02:59]}  Nc6 {[%clk 0:02:51]} 3. Bg2 {[%clk 0:02:58]}  e6 {[%clk 0:02:51]} 4. c4 {[%clk 0:02:59]}  Nf6 {[%clk 0:02:50]} 5. Nc3 {[%clk 0:02:59]}  d6 {[%clk 0:02:50]} 6. Nge2 {[%clk 0:02:59]}  e5 {[%clk 0:02:51]} 7. O-O {[%clk 0:02:59]}  g6 {[%clk 0:02:52]} 8. d3 {[%clk 0:03:00]}  Bg7 {[%clk 0:02:52]} 9. h3 {[%clk 0:03:00]}  O-O {[%clk 0:02:52]} 10. Be3 {[%clk 0:03:00]}  Nd4 {[%clk 0:02:51]} 11. Kh2 {[%clk 0:03:01]}  a6 {[%clk 0:02:41]} 12. a4 {[%clk 0:03:00]}  b6 {[%clk 0:02:40]} 13. f4 {[%clk 0:02:59]}  Rb8 {[%clk 0:02:41]} 14. Rf2 {[%clk 0:02:09]}  Nh5 {[%clk 0:02:26]} 15. Bxd4 {[%clk 0:02:00]}  cxd4 {[%clk 0:02:19]} 16. Nd5 {[%clk 0:02:00]}  Be6 {[%clk 0:02:16]} 17. Nb4 {[%clk 0:01:38]}  exf4 {[%clk 0:01:50]} 18. Nxf4 {[%clk 0:01:27]}  Nxg3 {[%clk 0:00:51]} 19. Kxg3 {[%clk 0:01:11]}  Be5 {[%clk 0:00:51]} 20. Kh2 {[%clk 0:00:34]}  Qh4 {[%clk 0:00:45]} 21. Qf1 {[%clk 0:00:04]}  g5 {[%clk 0:00:44]} 22. Nc6 {[%clk 0:00:05]}  Bxf4+ {[%clk 0:00:44]} 23. Rxf4 {[%clk 0:00:04]}  gxf4 {[%clk 0:00:44]} 24. Nxb8 {[%clk 0:00:03]}  Rxb8 {[%clk 0:00:43]} 25. Qf3 {[%clk 0:00:03]}  Kh8 {[%clk 0:00:32]} 26. Rg1 {[%clk 0:00:03]}  Rg8 {[%clk 0:00:32]} 27. Bf1 {[%clk 0:00:04]}  Rxg1 {[%clk 0:00:30]} 28. Kxg1 {[%clk 0:00:04]}  Qg5+ {[%clk 0:00:30]} 29. Kh2 {[%clk 0:00:04]}  Kg7 {[%clk 0:00:30]} 30. b4 {[%clk 0:00:04]}  Kf6 {[%clk 0:00:30]} 31. Be2 {[%clk 0:00:02]}  Ke5 {[%clk 0:00:29]} 32. Bf1 {[%clk 0:00:03]}  Kf6 {[%clk 0:00:28]} 33. Be2 {[%clk 0:00:03]}  Ke7 {[%clk 0:00:28]} 34. Bf1 {[%clk 0:00:03]}  Qh4 {[%clk 0:00:28]} 35. Kg1 {[%clk 0:00:02]}  Qg5+ {[%clk 0:00:28]} 36. Kh2 {[%clk 0:00:02]}  Qh4 {[%clk 0:00:20]} 37. Qg2 {[%clk 0:00:02]}  Qe1 {[%clk 0:00:18]} 38. Qg5+ {[%clk 0:00:03]}  f6 {[%clk 0:00:18]} 39. Qxf4 {[%clk 0:00:03]}  Qxb4 {[%clk 0:00:15]} 40. Qh6 {[%clk 0:00:03]}  Qb2+ {[%clk 0:00:15]} 41. Kg1 {[%clk 0:00:03]}  Qc2 {[%clk 0:00:15]} 42. Qxh7+ {[%clk 0:00:04]}  Bf7 {[%clk 0:00:15]} 43. a5 {[%clk 0:00:03]}  bxa5 {[%clk 0:00:15]} 44. Qh8 {[%clk 0:00:03]}  Qd2 {[%clk 0:00:15]} 45. Qa8 {[%clk 0:00:03]}  Qe3+ {[%clk 0:00:15]} 46. Kh1 {[%clk 0:00:04]}  Qf3+ {[%clk 0:00:15]} 47. Bg2 {[%clk 0:00:04]}  Qd1+ {[%clk 0:00:15]} 48. Kh2 {[%clk 0:00:05]}  Qxd3 {[%clk 0:00:16]} 49. Qb7+ {[%clk 0:00:05]}  Kf8 {[%clk 0:00:16]} 50. Qxa6 {[%clk 0:00:05]}  Qe3 {[%clk 0:00:16]} 51. Qxd6+ {[%clk 0:00:06]}  Kg7 {[%clk 0:00:16]} 52. c5 {[%clk 0:00:06]}  d3 {[%clk 0:00:17]} 53. c6 {[%clk 0:00:05]}  d2 {[%clk 0:00:14]} 54. c7 {[%clk 0:00:06]}  Qc3 {[%clk 0:00:15]} 55. c8=Q {[%clk 0:00:02]}  Qxc8 {[%clk 0:00:15]} 56. Qxd2 {[%clk 0:00:03]}  Qc7+ {[%clk 0:00:15]} 57. Kh1 {[%clk 0:00:03]}  Qe5 {[%clk 0:00:16]} 58. h4 {[%clk 0:00:03]}  Be6 {[%clk 0:00:15]} 59. Bf3 {[%clk 0:00:03]}  a4 {[%clk 0:00:15]} 60. Qg2+ {[%clk 0:00:04]}  Kf8 {[%clk 0:00:13]} 61. Qc2 {[%clk 0:00:03]}  a3 {[%clk 0:00:12]} 62. Qd2 {[%clk 0:00:02]}  a2 {[%clk 0:00:11]} 63. Qd8+ {[%clk 0:00:03]}  Kg7 {[%clk 0:00:11]} 64. Qe7+ {[%clk 0:00:03]}  Bf7 {[%clk 0:00:11]} 65. Bh5 {[%clk 0:00:03]}  Qxe7 {[%clk 0:00:11]} 0-1


[Site "https://www.chess.com"]

[Event "Titled Tuesday Blitz August 02 Early 2022"]
[White "Demchenko, Anton"]
[Black "Tica, Sven"]
[WhiteFideId "4160258"]
[BlackFideId "14526948"]
[WhiteElo "2539"]
[BlackElo "2346"]
[Result "1-0"]
[Round "06"]
[TimeControl "180+1"]
[Date "2022.08.02"]
[WhiteClock "0:01:15"]
[BlackClock "0:01:25"]

1. e4 {[%clk 0:03:00]}  g6 {[%clk 0:03:00]} 2. d4 {[%clk 0:03:00]}  Bg7 {[%clk 0:03:01]} 3. Nc3 {[%clk 0:02:59]}  a6 {[%clk 0:03:01]} 4. a4 {[%clk 0:02:51]}  d6 {[%clk 0:03:00]} 5. Nf3 {[%clk 0:02:46]}  Nd7 {[%clk 0:03:00]} 6. Bc4 {[%clk 0:02:45]}  e6 {[%clk 0:03:00]} 7. O-O {[%clk 0:02:43]}  Ne7 {[%clk 0:03:00]} 8. Re1 {[%clk 0:02:43]}  h6 {[%clk 0:02:58]} 9. Bb3 {[%clk 0:02:43]}  b6 {[%clk 0:02:58]} 10. Ne2 {[%clk 0:02:42]}  Bb7 {[%clk 0:02:56]} 11. Ng3 {[%clk 0:02:43]}  O-O {[%clk 0:02:47]} 12. c3 {[%clk 0:02:43]}  e5 {[%clk 0:02:45]} 13. dxe5 {[%clk 0:02:39]}  Nxe5 {[%clk 0:02:29]} 14. Nxe5 {[%clk 0:02:38]}  dxe5 {[%clk 0:02:30]} 15. Qe2 {[%clk 0:02:36]}  Qd6 {[%clk 0:02:21]} 16. a5 {[%clk 0:02:32]}  b5 {[%clk 0:02:17]} 17. Rd1 {[%clk 0:02:13]}  Qf6 {[%clk 0:02:13]} 18. Be3 {[%clk 0:02:10]}  Rfd8 {[%clk 0:02:14]} 19. Ba2 {[%clk 0:01:57]}  Bf8 {[%clk 0:02:07]} 20. f3 {[%clk 0:01:51]}  Rxd1+ {[%clk 0:01:56]} 21. Rxd1 {[%clk 0:01:50]}  Nc6 {[%clk 0:01:56]} 22. b4 {[%clk 0:01:50]}  Rd8 {[%clk 0:01:56]} 23. Bd5 {[%clk 0:01:48]}  Bc8 {[%clk 0:01:37]} 24. Rd2 {[%clk 0:01:40]}  Kg7 {[%clk 0:01:29]} 25. Bxc6 {[%clk 0:01:30]}  Rxd2 {[%clk 0:01:29]} 26. Qxd2 {[%clk 0:01:23]}  Qxc6 {[%clk 0:01:22]} 27. Bxh6+ {[%clk 0:01:24]}  Kg8 {[%clk 0:01:23]} 28. Bxf8 {[%clk 0:01:22]}  Kxf8 {[%clk 0:01:24]} 29. Qd8+ {[%clk 0:01:21]}  Qe8 {[%clk 0:01:24]} 30. Qxc7 {[%clk 0:01:20]}  Be6 {[%clk 0:01:24]} 31. Qxe5 {[%clk 0:01:17]}  Qd7 {[%clk 0:01:25]} 32. Qd4 {[%clk 0:01:15]} 1-0


[Site "https://www.chess.com"]

[Event "Titled Tuesday Blitz August 02 Early 2022"]
[White "Gareyev, Timur"]
[Black "Bortnyk, Olexandr"]
[WhiteFideId "14200937"]
[BlackFideId "14120828"]
[WhiteElo "2865"]
[BlackElo "3012"]
[Result "1-0"]
[Round "06"]
[TimeControl "180+1"]
[Date "2022.08.02"]
[WhiteClock "0:00:04"]
[BlackClock "0:00:02"]

1. d4 {[%clk 0:02:58]}  d6 {[%clk 0:02:59]} 2. Nf3 {[%clk 0:02:56]}  Nf6 {[%clk 0:02:57]} 3. c4 {[%clk 0:02:55]}  g6 {[%clk 0:02:57]} 4. Nc3 {[%clk 0:02:55]}  Bf5 {[%clk 0:02:57]} 5. Ng5 {[%clk 0:02:52]}  h6 {[%clk 0:02:54]} 6. e4 {[%clk 0:02:50]}  Bg4 {[%clk 0:02:43]} 7. Nf3 {[%clk 0:02:45]}  Bg7 {[%clk 0:02:43]} 8. Be2 {[%clk 0:02:44]}  O-O {[%clk 0:02:43]} 9. Be3 {[%clk 0:02:43]}  c6 {[%clk 0:02:38]} 10. h3 {[%clk 0:02:32]}  Bxf3 {[%clk 0:02:38]} 11. Bxf3 {[%clk 0:02:33]}  Nfd7 {[%clk 0:02:32]} 12. Qd2 {[%clk 0:02:30]}  Kh7 {[%clk 0:02:32]} 13. g4 {[%clk 0:02:17]}  Na6 {[%clk 0:02:31]} 14. h4 {[%clk 0:02:16]}  c5 {[%clk 0:02:27]} 15. d5 {[%clk 0:02:13]}  Qa5 {[%clk 0:02:14]} 16. Be2 {[%clk 0:02:00]}  Nc7 {[%clk 0:01:31]} 17. O-O {[%clk 0:01:38]}  f5 {[%clk 0:01:16]} 18. exf5 {[%clk 0:01:36]}  gxf5 {[%clk 0:01:17]} 19. g5 {[%clk 0:01:16]}  Rae8 {[%clk 0:00:22]} 20. Kh1 {[%clk 0:01:04]}  e5 {[%clk 0:00:21]} 21. g6+ {[%clk 0:00:39]}  Kg8 {[%clk 0:00:16]} 22. Bxh6 {[%clk 0:00:39]}  f4 {[%clk 0:00:16]} 23. Bg5 {[%clk 0:00:36]}  Nf6 {[%clk 0:00:11]} 24. Bd3 {[%clk 0:00:26]}  b5 {[%clk 0:00:07]} 25. cxb5 {[%clk 0:00:24]}  Kh8 {[%clk 0:00:04]} 26. h5 {[%clk 0:00:15]}  Nxh5 {[%clk 0:00:02]} 27. f3 {[%clk 0:00:09]}  Ng3+ {[%clk 0:00:02]} 28. Kg1 {[%clk 0:00:09]}  Kg8 {[%clk 0:00:02]} 29. Qh2 {[%clk 0:00:10]}  Rf5 {[%clk 0:00:02]} 30. Qh7+ {[%clk 0:00:08]}  Kf8 {[%clk 0:00:02]} 31. Bh6 {[%clk 0:00:08]}  Ke7 {[%clk 0:00:01]} 32. Qxg7+ {[%clk 0:00:08]}  Kd8 {[%clk 0:00:01]} 33. Bxf5 {[%clk 0:00:08]}  Nxf5 {[%clk 0:00:01]} 34. Qf6+ {[%clk 0:00:09]}  Ne7 {[%clk 0:00:02]} 35. Qxd6+ {[%clk 0:00:08]}  Kc8 {[%clk 0:00:02]} 36. g7 {[%clk 0:00:08]}  c4 {[%clk 0:00:01]} 37. Qxe7 {[%clk 0:00:08]}  Qb6+ {[%clk 0:00:01]} 38. Kg2 {[%clk 0:00:08]}  Rxe7 {[%clk 0:00:01]} 39. g8=Q+ {[%clk 0:00:07]}  Re8 {[%clk 0:00:02]} 40. Qg4+ {[%clk 0:00:06]}  Kb8 {[%clk 0:00:01]} 41. Bg5 {[%clk 0:00:07]}  Rg8 {[%clk 0:00:01]} 42. Rad1 {[%clk 0:00:07]}  Qg6 {[%clk 0:00:01]} 43. Ne4 {[%clk 0:00:07]}  Nxb5 {[%clk 0:00:01]} 44. d6 {[%clk 0:00:07]}  Nd4 {[%clk 0:00:02]} 45. Rxd4 {[%clk 0:00:07]}  exd4 {[%clk 0:00:03]} 46. Qxf4 {[%clk 0:00:08]}  Qe6 {[%clk 0:00:02]} 47. d7+ {[%clk 0:00:07]}  Kb7 {[%clk 0:00:03]} 48. Qg4 {[%clk 0:00:07]}  Qd5 {[%clk 0:00:03]} 49. Nf6 {[%clk 0:00:06]}  Qxg5 {[%clk 0:00:03]} 50. Nxg8 {[%clk 0:00:06]}  Qd2+ {[%clk 0:00:01]} 51. Rf2 {[%clk 0:00:05]}  Kc7 {[%clk 0:00:02]} 52. Rxd2 {[%clk 0:00:04]} 1-0


[Site "https://www.chess.com"]

[Event "Titled Tuesday Blitz August 02 Early 2022"]
[White "Hakobyan, Aram"]
[Black "Alexiadis, Hristos"]
[WhiteFideId "13306677"]
[BlackFideId "4249623"]
[WhiteElo "2996"]
[BlackElo "2730"]
[Result "1/2-1/2"]
[Round "06"]
[TimeControl "180+1"]
[Date "2022.08.02"]
[WhiteClock "0:00:02"]
[BlackClock "0:00:30"]

1. Nf3 {[%clk 0:03:00]}  Nf6 {[%clk 0:02:57]} 2. g3 {[%clk 0:03:01]}  d5 {[%clk 0:02:57]} 3. Bg2 {[%clk 0:03:01]}  c6 {[%clk 0:02:58]} 4. O-O {[%clk 0:03:02]}  Bg4 {[%clk 0:02:58]} 5. h3 {[%clk 0:03:02]}  Bh5 {[%clk 0:02:59]} 6. d4 {[%clk 0:03:03]}  Nbd7 {[%clk 0:02:59]} 7. c4 {[%clk 0:03:04]}  e6 {[%clk 0:02:59]} 8. cxd5 {[%clk 0:03:04]}  cxd5 {[%clk 0:02:59]} 9. Nc3 {[%clk 0:03:04]}  Be7 {[%clk 0:02:58]} 10. Qb3 {[%clk 0:03:00]}  Qb6 {[%clk 0:02:56]} 11. Qxb6 {[%clk 0:03:00]}  Nxb6 {[%clk 0:02:54]} 12. Ne5 {[%clk 0:03:01]}  Bg6 {[%clk 0:02:52]} 13. Nxg6 {[%clk 0:03:00]}  hxg6 {[%clk 0:02:53]} 14. b3 {[%clk 0:03:00]}  Kd7 {[%clk 0:02:49]} 15. Bb2 {[%clk 0:02:53]}  Rhc8 {[%clk 0:02:49]} 16. Rac1 {[%clk 0:02:53]}  Rc6 {[%clk 0:02:43]} 17. Nb5 {[%clk 0:02:47]}  a6 {[%clk 0:02:24]} 18. Rxc6 {[%clk 0:02:46]}  Kxc6 {[%clk 0:02:25]} 19. Nc3 {[%clk 0:02:45]}  Kd7 {[%clk 0:02:23]} 20. Rc1 {[%clk 0:02:43]}  Rc8 {[%clk 0:02:23]} 21. e3 {[%clk 0:02:43]}  Bb4 {[%clk 0:02:16]} 22. Kf1 {[%clk 0:02:43]}  Rc7 {[%clk 0:02:12]} 23. g4 {[%clk 0:02:38]}  g5 {[%clk 0:02:06]} 24. Ke2 {[%clk 0:02:38]}  Nc8 {[%clk 0:02:06]} 25. Na4 {[%clk 0:02:33]}  Rxc1 {[%clk 0:02:05]} 26. Bxc1 {[%clk 0:02:34]}  Kc6 {[%clk 0:01:59]} 27. f3 {[%clk 0:02:05]}  b5 {[%clk 0:01:56]} 28. Nc5 {[%clk 0:01:49]}  Bxc5 {[%clk 0:01:54]} 29. dxc5 {[%clk 0:01:50]}  Kxc5 {[%clk 0:01:54]} 30. e4 {[%clk 0:01:51]}  dxe4 {[%clk 0:01:53]} 31. fxe4 {[%clk 0:01:52]}  e5 {[%clk 0:01:26]} 32. Bxg5 {[%clk 0:01:51]}  Nd7 {[%clk 0:01:21]} 33. h4 {[%clk 0:01:43]}  Nf8 {[%clk 0:01:18]} 34. Be3+ {[%clk 0:01:37]}  Kc6 {[%clk 0:01:17]} 35. g5 {[%clk 0:01:29]}  g6 {[%clk 0:01:15]} 36. Bh3 {[%clk 0:01:29]}  Nd6 {[%clk 0:01:14]} 37. Kd3 {[%clk 0:01:29]}  Nd7 {[%clk 0:01:03]} 38. b4 {[%clk 0:00:53]}  Nb6 {[%clk 0:01:02]} 39. Bf2 {[%clk 0:00:40]}  Nbc4 {[%clk 0:01:01]} 40. Bg3 {[%clk 0:00:38]}  Nb2+ {[%clk 0:00:59]} 41. Ke3 {[%clk 0:00:33]}  Nbc4+ {[%clk 0:00:56]} 42. Kd3 {[%clk 0:00:28]}  Nb2+ {[%clk 0:00:56]} 43. Ke2 {[%clk 0:00:20]}  Nbc4 {[%clk 0:00:55]} 44. Bg2 {[%clk 0:00:20]}  Kd7 {[%clk 0:00:51]} 45. Bf2 {[%clk 0:00:19]}  Kc6 {[%clk 0:00:48]} 46. Bc5 {[%clk 0:00:19]}  Nb2 {[%clk 0:00:44]} 47. Bf3 {[%clk 0:00:15]}  Nbc4 {[%clk 0:00:44]} 48. Kd3 {[%clk 0:00:15]}  Nb2+ {[%clk 0:00:39]} 49. Kd2 {[%clk 0:00:11]}  Nbc4+ {[%clk 0:00:39]} 50. Ke2 {[%clk 0:00:12]}  a5 {[%clk 0:00:37]} 51. h5 {[%clk 0:00:11]}  gxh5 {[%clk 0:00:36]} 52. Bxh5 {[%clk 0:00:12]}  Nxe4 {[%clk 0:00:33]} 53. Bf3 {[%clk 0:00:12]}  Kd5 {[%clk 0:00:32]} 54. Kd3 {[%clk 0:00:08]}  Nb2+ {[%clk 0:00:29]} 55. Kc2 {[%clk 0:00:08]}  Nc4 {[%clk 0:00:29]} 56. Kd3 {[%clk 0:00:04]}  axb4 {[%clk 0:00:29]} 57. Bxb4 {[%clk 0:00:04]}  Nb2+ {[%clk 0:00:30]} 58. Ke3 {[%clk 0:00:04]}  Nc4+ {[%clk 0:00:29]} 59. Kd3 {[%clk 0:00:05]}  Nb2+ {[%clk 0:00:29]} 60. Kc2 {[%clk 0:00:05]}  Nc4 {[%clk 0:00:30]} 61. Kd3 {[%clk 0:00:02]} 1/2-1/2


[Site "https://www.chess.com"]

[Event "Titled Tuesday Blitz August 02 Early 2022"]
[White "Harsha Bharathakoti"]
[Black "Wagner, Dennis"]
[WhiteFideId "5078776"]
[BlackFideId "24650684"]
[WhiteElo "2575"]
[BlackElo "2355"]
[Result "1-0"]
[Round "06"]
[TimeControl "180+1"]
[Date "2022.08.02"]
[WhiteClock "0:00:20"]
[BlackClock "0:00:07"]

1. c4 {[%clk 0:03:00]}  Nf6 {[%clk 0:02:59]} 2. Nc3 {[%clk 0:03:00]}  c5 {[%clk 0:02:58]} 3. Nf3 {[%clk 0:02:58]}  e6 {[%clk 0:02:58]} 4. e3 {[%clk 0:02:58]}  d5 {[%clk 0:02:57]} 5. cxd5 {[%clk 0:02:58]}  exd5 {[%clk 0:02:57]} 6. d4 {[%clk 0:02:59]}  a6 {[%clk 0:02:58]} 7. Be2 {[%clk 0:02:55]}  Nc6 {[%clk 0:02:57]} 8. O-O {[%clk 0:02:51]}  Bg4 {[%clk 0:02:55]} 9. h3 {[%clk 0:02:45]}  Bxf3 {[%clk 0:02:55]} 10. Bxf3 {[%clk 0:02:45]}  cxd4 {[%clk 0:02:55]} 11. exd4 {[%clk 0:02:46]}  Be7 {[%clk 0:02:56]} 12. Be3 {[%clk 0:02:44]}  O-O {[%clk 0:02:56]} 13. Rc1 {[%clk 0:02:30]}  Re8 {[%clk 0:02:55]} 14. Qd3 {[%clk 0:02:29]}  Qd7 {[%clk 0:02:45]} 15. Na4 {[%clk 0:02:23]}  Nb4 {[%clk 0:02:19]} 16. Qb3 {[%clk 0:02:19]}  Qb5 {[%clk 0:02:18]} 17. Nc3 {[%clk 0:02:12]}  Qd7 {[%clk 0:01:56]} 18. a3 {[%clk 0:02:12]}  Nc6 {[%clk 0:01:53]} 19. Nxd5 {[%clk 0:02:12]}  Nxd5 {[%clk 0:01:49]} 20. Qxd5 {[%clk 0:01:59]}  Qxd5 {[%clk 0:01:20]} 21. Bxd5 {[%clk 0:02:00]}  Nxd4 {[%clk 0:01:06]} 22. Bxd4 {[%clk 0:01:41]}  Rad8 {[%clk 0:01:06]} 23. Bxf7+ {[%clk 0:01:07]}  Kxf7 {[%clk 0:01:06]} 24. Rfd1 {[%clk 0:00:59]}  Rd7 {[%clk 0:01:00]} 25. Bc3 {[%clk 0:00:59]}  Red8 {[%clk 0:00:59]} 26. Rxd7 {[%clk 0:00:59]}  Rxd7 {[%clk 0:01:00]} 27. Kf1 {[%clk 0:00:59]}  Bf6 {[%clk 0:00:56]} 28. Ke2 {[%clk 0:00:59]}  Bxc3 {[%clk 0:00:50]} 29. Rxc3 {[%clk 0:01:00]}  h5 {[%clk 0:00:46]} 30. h4 {[%clk 0:00:57]}  g6 {[%clk 0:00:46]} 31. b4 {[%clk 0:00:45]}  Kf6 {[%clk 0:00:43]} 32. Rc5 {[%clk 0:00:45]}  Re7+ {[%clk 0:00:35]} 33. Kd3 {[%clk 0:00:43]}  Rd7+ {[%clk 0:00:36]} 34. Ke3 {[%clk 0:00:41]}  Re7+ {[%clk 0:00:36]} 35. Kf3 {[%clk 0:00:38]}  Rd7 {[%clk 0:00:36]} 36. Rc3 {[%clk 0:00:34]}  Rd4 {[%clk 0:00:35]} 37. g3 {[%clk 0:00:34]}  Rd2 {[%clk 0:00:33]} 38. Ke3 {[%clk 0:00:29]}  Ra2 {[%clk 0:00:33]} 39. f3 {[%clk 0:00:30]}  Ke6 {[%clk 0:00:33]} 40. Kf4 {[%clk 0:00:30]}  Kf6 {[%clk 0:00:34]} 41. Rd3 {[%clk 0:00:30]}  Ra1 {[%clk 0:00:19]} 42. Rd6+ {[%clk 0:00:30]}  Kf7 {[%clk 0:00:20]} 43. Kg5 {[%clk 0:00:23]}  Rxa3 {[%clk 0:00:19]} 44. Rf6+ {[%clk 0:00:23]}  Ke7 {[%clk 0:00:20]} 45. Kxg6 {[%clk 0:00:24]}  Rb3 {[%clk 0:00:13]} 46. Rf4 {[%clk 0:00:20]}  b6 {[%clk 0:00:11]} 47. Kxh5 {[%clk 0:00:21]}  a5 {[%clk 0:00:12]} 48. bxa5 {[%clk 0:00:21]}  bxa5 {[%clk 0:00:13]} 49. Ra4 {[%clk 0:00:20]}  Rxf3 {[%clk 0:00:12]} 50. Kg4 {[%clk 0:00:18]}  Rb3 {[%clk 0:00:08]} 51. Rxa5 {[%clk 0:00:18]}  Kf6 {[%clk 0:00:09]} 52. Ra6+ {[%clk 0:00:18]}  Kg7 {[%clk 0:00:09]} 53. h5 {[%clk 0:00:19]}  Rc3 {[%clk 0:00:09]} 54. Kh4 {[%clk 0:00:18]}  Rb3 {[%clk 0:00:09]} 55. g4 {[%clk 0:00:19]}  Kh7 {[%clk 0:00:10]} 56. h6 {[%clk 0:00:18]}  Rb5 {[%clk 0:00:10]} 57. g5 {[%clk 0:00:18]}  Rb1 {[%clk 0:00:09]} 58. Ra7+ {[%clk 0:00:19]}  Kh8 {[%clk 0:00:07]} 59. Kh5 {[%clk 0:00:19]}  Rb8 {[%clk 0:00:07]} 60. Re7 {[%clk 0:00:18]}  Rc8 {[%clk 0:00:07]} 61. Kg6 {[%clk 0:00:18]}  Rc6+ {[%clk 0:00:07]} 62. Kf5 {[%clk 0:00:18]}  Rc5+ {[%clk 0:00:08]} 63. Re5 {[%clk 0:00:19]}  Rc8 {[%clk 0:00:08]} 64. g6 {[%clk 0:00:20]}  Ra8 {[%clk 0:00:08]} 65. Re7 {[%clk 0:00:19]}  Kg8 {[%clk 0:00:08]} 66. Rd7 {[%clk 0:00:18]}  Ra5+ {[%clk 0:00:08]} 67. Kf4 {[%clk 0:00:15]}  Ra4+ {[%clk 0:00:08]} 68. Ke5 {[%clk 0:00:15]}  Ra8 {[%clk 0:00:07]} 69. Ke6 {[%clk 0:00:15]}  Ra6+ {[%clk 0:00:07]} 70. Rd6 {[%clk 0:00:15]}  Ra8 {[%clk 0:00:08]} 71. Ke7 {[%clk 0:00:16]}  Ra7+ {[%clk 0:00:05]} 72. Rd7 {[%clk 0:00:17]}  Ra8 {[%clk 0:00:05]} 73. Rd8+ {[%clk 0:00:17]}  Rxd8 {[%clk 0:00:05]} 74. Kxd8 {[%clk 0:00:18]}  Kh8 {[%clk 0:00:05]} 75. Ke7 {[%clk 0:00:19]}  Kg8 {[%clk 0:00:06]} 76. Kf6 {[%clk 0:00:18]}  Kh8 {[%clk 0:00:07]} 77. g7+ {[%clk 0:00:18]}  Kg8 {[%clk 0:00:07]} 78. h7+ {[%clk 0:00:19]}  Kxh7 {[%clk 0:00:07]} 79. Kf7 {[%clk 0:00:20]} 1-0


[Site "https://www.chess.com"]

[Event "Titled Tuesday Blitz August 02 Early 2022"]
[White "Izoria, Zviad"]
[Black "Jubin Jimmy"]
[WhiteFideId "13601733"]
[BlackFideId "46686614"]
[WhiteElo "2813"]
[BlackElo "2904"]
[Result "1-0"]
[Round "06"]
[TimeControl "180+1"]
[Date "2022.08.02"]
[WhiteClock "0:01:08"]
[BlackClock "0:00:03"]

1. Nf3 {[%clk 0:02:56]}  Nf6 {[%clk 0:02:57]} 2. c4 {[%clk 0:02:55]}  e6 {[%clk 0:02:57]} 3. Nc3 {[%clk 0:02:55]}  Bb4 {[%clk 0:02:54]} 4. Qc2 {[%clk 0:02:54]}  O-O {[%clk 0:02:53]} 5. a3 {[%clk 0:02:54]}  Bxc3 {[%clk 0:02:52]} 6. Qxc3 {[%clk 0:02:55]}  b6 {[%clk 0:02:53]} 7. g3 {[%clk 0:02:55]}  Bb7 {[%clk 0:02:54]} 8. Bg2 {[%clk 0:02:55]}  d6 {[%clk 0:02:54]} 9. O-O {[%clk 0:02:54]}  Nbd7 {[%clk 0:02:55]} 10. d3 {[%clk 0:02:54]}  a5 {[%clk 0:02:44]} 11. b3 {[%clk 0:02:53]}  e5 {[%clk 0:02:44]} 12. e4 {[%clk 0:02:44]}  h6 {[%clk 0:02:36]} 13. Nh4 {[%clk 0:02:40]}  Nc5 {[%clk 0:02:34]} 14. Be3 {[%clk 0:02:34]}  Ne6 {[%clk 0:02:20]} 15. h3 {[%clk 0:02:27]}  Bc8 {[%clk 0:02:18]} 16. Nf5 {[%clk 0:02:08]}  c5 {[%clk 0:02:18]} 17. Qb2 {[%clk 0:02:00]}  Nd4 {[%clk 0:02:14]} 18. Nxd4 {[%clk 0:01:59]}  exd4 {[%clk 0:01:44]} 19. Bd2 {[%clk 0:01:59]}  Bb7 {[%clk 0:01:43]} 20. Rae1 {[%clk 0:01:55]}  Nd7 {[%clk 0:01:42]} 21. g4 {[%clk 0:01:50]}  Qh4 {[%clk 0:01:34]} 22. f4 {[%clk 0:01:49]}  Rae8 {[%clk 0:01:33]} 23. a4 {[%clk 0:01:48]}  Nf6 {[%clk 0:01:20]} 24. Re2 {[%clk 0:01:45]}  Nh7 {[%clk 0:01:13]} 25. Be1 {[%clk 0:01:45]}  Qd8 {[%clk 0:01:13]} 26. Bg3 {[%clk 0:01:45]}  Qd7 {[%clk 0:00:59]} 27. Bf3 {[%clk 0:01:39]}  f6 {[%clk 0:00:53]} 28. Ree1 {[%clk 0:01:34]}  Re7 {[%clk 0:00:53]} 29. Qh2 {[%clk 0:01:32]}  Rfe8 {[%clk 0:00:52]} 30. h4 {[%clk 0:01:29]}  Rf8 {[%clk 0:00:37]} 31. f5 {[%clk 0:01:28]}  Re5 {[%clk 0:00:27]} 32. Bxe5 {[%clk 0:01:27]}  dxe5 {[%clk 0:00:27]} 33. Re2 {[%clk 0:01:27]}  Qe7 {[%clk 0:00:25]} 34. Rg2 {[%clk 0:01:27]}  Bc6 {[%clk 0:00:20]} 35. Kf2 {[%clk 0:01:27]}  Bd7 {[%clk 0:00:20]} 36. Ke1 {[%clk 0:01:27]}  Bc6 {[%clk 0:00:21]} 37. Rfg1 {[%clk 0:01:27]}  Bd7 {[%clk 0:00:16]} 38. Kd2 {[%clk 0:01:26]}  Bc6 {[%clk 0:00:16]} 39. Kc2 {[%clk 0:01:26]}  Bd7 {[%clk 0:00:17]} 40. Kb2 {[%clk 0:01:26]}  Bc6 {[%clk 0:00:17]} 41. g5 {[%clk 0:01:25]}  fxg5 {[%clk 0:00:17]} 42. Bh5 {[%clk 0:01:25]}  Be8 {[%clk 0:00:15]} 43. Bg6 {[%clk 0:01:23]}  g4 {[%clk 0:00:16]} 44. Rxg4 {[%clk 0:01:19]}  Nf6 {[%clk 0:00:15]} 45. R4g2 {[%clk 0:01:16]}  Bc6 {[%clk 0:00:07]} 46. Bh7+ {[%clk 0:01:07]}  Kxh7 {[%clk 0:00:06]} 47. Rxg7+ {[%clk 0:01:08]}  Qxg7 {[%clk 0:00:07]} 48. Rxg7+ {[%clk 0:01:09]}  Kxg7 {[%clk 0:00:08]} 49. Qxe5 {[%clk 0:01:09]}  Rc8 {[%clk 0:00:03]} 50. Qe7+ {[%clk 0:01:08]} 1-0


[Site "https://www.chess.com"]